[Event "*** Titled Tuesday Blitz"]
[Site "Chess.com"]
[Date "2019.11.05"]
[Round "3"]
[White "Dedic8"]
[Black "Zhuu96"]
[Result "0-1"]
[WhiteElo "2746"]
[BlackElo "2980"]
[TimeControl "180+2"]
[EndTime "13:36:36 PST"]
[Termination "Zhuu96 won by resignation"]

1. e4 {[%clk 0:03:01.9]} 1... c5 {[%clk 0:03:00]} 2. Nf3 {[%clk 0:03:03]} 2...
d6 {[%clk 0:03:01.1]} 3. d4 {[%clk 0:03:04.7]} 3... cxd4 {[%clk 0:03:02.3]} 4.
Nxd4 {[%clk 0:03:06.6]} 4... Nf6 {[%clk 0:03:03.6]} 5. Nc3 {[%clk 0:03:08.2]}
5... a6 {[%clk 0:03:05.5]} 6. h3 {[%clk 0:03:09.9]} 6... e6 {[%clk 0:03:00.4]}
7. g4 {[%clk 0:03:10.9]} 7... h6 {[%clk 0:03:01.2]} 8. Bg2 {[%clk 0:03:12]} 8...
g5 {[%clk 0:03:02.7]} 9. Be3 {[%clk 0:03:12.4]} 9... Nbd7 {[%clk 0:03:04.2]} 10.
h4 {[%clk 0:03:08.1]} 10... gxh4 {[%clk 0:03:00.7]} 11. Qe2 {[%clk 0:02:53.2]}
11... Ne5 {[%clk 0:02:56.4]} 12. Bh3 {[%clk 0:02:49.5]} 12... Rg8 {[%clk
0:02:54.4]} 13. f3 {[%clk 0:02:42.3]} 13... Bd7 {[%clk 0:02:53.9]} 14. O-O-O
{[%clk 0:02:42.5]} 14... Rc8 {[%clk 0:02:50.6]} 15. Kb1 {[%clk 0:02:43.7]} 15...
Rxc3 {[%clk 0:02:50.3]} 16. bxc3 {[%clk 0:02:44.1]} 16... Qc7 {[%clk 0:02:50]}
17. Nb3 {[%clk 0:02:23.4]} 17... Nc4 {[%clk 0:02:44.1]} 18. Bc1 {[%clk
0:02:07.7]} 18... Bb5 {[%clk 0:02:32.4]} 19. Qe1 {[%clk 0:02:05.1]} 19... Bg7
{[%clk 0:02:32.4]} 20. Qxh4 {[%clk 0:01:55.4]} 20... Ne5 {[%clk 0:02:19.5]} 21.
Bg2 {[%clk 0:01:35.8]} 21... Qxc3 {[%clk 0:02:11.6]} 22. Bb2 {[%clk 0:01:36.4]}
22... Qc7 {[%clk 0:02:12.2]} 23. f4 {[%clk 0:01:25.7]} 23... Nexg4 {[%clk
0:02:12.6]} 24. e5 {[%clk 0:01:16.8]} 24... Ne3 {[%clk 0:02:12.3]} 25. Rd2
{[%clk 0:00:56.9]} 25... dxe5 {[%clk 0:02:09.7]} 26. Bxe5 {[%clk 0:00:48.6]}
26... Qe7 {[%clk 0:02:10.3]} 27. Bd6 {[%clk 0:00:34.2]} 27... Nxg2 {[%clk
0:02:06]} 28. Qh2 {[%clk 0:00:13.2]} 28... Qd7 {[%clk 0:02:05.3]} 29. Qxg2
{[%clk 0:00:12.5]} 29... Bc6 {[%clk 0:02:06.3]} 30. Qh2 {[%clk 0:00:09.8]} 30...
Ne4 {[%clk 0:02:01.8]} 31. Rhd1 {[%clk 0:00:06]} 31... Nc3+ {[%clk 0:02:00.3]}
32. Kc1 {[%clk 0:00:05.9]} 32... Nxa2+ {[%clk 0:02:01.4]} 33. Kb1 {[%clk
0:00:07.6]} 33... Nc3+ {[%clk 0:02:02.4]} 34. Kc1 {[%clk 0:00:09.1]} 34... Nxd1
{[%clk 0:02:03.4]} 35. Rxd1 {[%clk 0:00:10.7]} 35... Bd5 {[%clk 0:02:03]} 36.
Be5 {[%clk 0:00:08.7]} 0-1

[Event "*** Titled Tuesday Blitz"]
[Site "Chess.com"]
[Date "2019.11.05"]
[Round "3"]
[White "Perecke"]
[Black "r31415"]
[Result "0-1"]
[WhiteElo "2139"]
[BlackElo "2438"]
[TimeControl "180+2"]
[EndTime "13:36:43 PST"]
[Termination "r31415 won by resignation"]

1. e4 {[%clk 0:03:01.9]} 1... e5 {[%clk 0:03:01]} 2. Nf3 {[%clk 0:03:01.8]} 2...
Nc6 {[%clk 0:03:02.5]} 3. d4 {[%clk 0:03:03.1]} 3... exd4 {[%clk 0:03:02]} 4.
Bc4 {[%clk 0:03:04.5]} 4... Nf6 {[%clk 0:03:02.3]} 5. O-O {[%clk 0:03:03.4]}
5... d6 {[%clk 0:03:01.5]} 6. Nxd4 {[%clk 0:03:03.8]} 6... Be7 {[%clk
0:02:55.8]} 7. Nc3 {[%clk 0:03:03.7]} 7... O-O {[%clk 0:02:56.6]} 8. f3 {[%clk
0:02:59.5]} 8... Bd7 {[%clk 0:02:42.9]} 9. Be3 {[%clk 0:02:57]} 9... Ne5 {[%clk
0:02:36.8]} 10. Be2 {[%clk 0:02:53.8]} 10... Bc8 {[%clk 0:02:21.2]} 11. h3
{[%clk 0:02:47]} 11... Re8 {[%clk 0:02:21.6]} 12. f4 {[%clk 0:02:47.4]} 12...
Ned7 {[%clk 0:02:19.9]} 13. g4 {[%clk 0:02:46.5]} 13... Nc5 {[%clk 0:02:20]} 14.
Bf3 {[%clk 0:02:47.2]} 14... Bf8 {[%clk 0:02:21.3]} 15. Bf2 {[%clk 0:02:47.7]}
15... Nfxe4 {[%clk 0:02:20.9]} 16. Nxe4 {[%clk 0:02:46.3]} 16... Nxe4 {[%clk
0:02:22.1]} 17. Be1 {[%clk 0:02:21]} 17... d5 {[%clk 0:02:16.5]} 18. c3 {[%clk
0:02:20.9]} 18... c6 {[%clk 0:02:00]} 19. Qd3 {[%clk 0:02:19.8]} 19... Qb6
{[%clk 0:01:52.1]} 20. Bxe4 {[%clk 0:02:02.6]} 20... dxe4 {[%clk 0:01:47.2]} 21.
Qe2 {[%clk 0:01:58.6]} 21... Be6 {[%clk 0:01:30.1]} 22. Bf2 {[%clk 0:01:56.3]}
22... Qc7 {[%clk 0:01:27.6]} 23. Nxe6 {[%clk 0:01:56.5]} 23... Rxe6 {[%clk
0:01:28.1]} 24. f5 {[%clk 0:01:56.6]} 24... Ree8 {[%clk 0:01:27.5]} 25. Kg2
{[%clk 0:01:56.1]} 25... Rad8 {[%clk 0:01:27.1]} 26. Rad1 {[%clk 0:01:54]} 26...
c5 {[%clk 0:01:22.6]} 27. Bg3 {[%clk 0:01:49.3]} 27... Qc6 {[%clk 0:01:20]} 28.
Qe3 {[%clk 0:01:49]} 28... Rd3 {[%clk 0:01:13]} 29. Rxd3 {[%clk 0:01:19.4]}
29... exd3+ {[%clk 0:01:11]} 30. Qf3 {[%clk 0:01:20.7]} 30... Re2+ {[%clk
0:01:11.2]} 31. Rf2 {[%clk 0:01:21.5]} 31... d2 {[%clk 0:00:53.6]} 32. Qxc6
{[%clk 0:01:21.8]} 32... bxc6 {[%clk 0:00:46.2]} 33. Rxe2 {[%clk 0:01:18.3]}
33... d1=Q {[%clk 0:00:47]} 34. Re8 {[%clk 0:01:19.3]} 34... Qd2+ {[%clk
0:00:43.4]} 35. Kf3 {[%clk 0:01:19]} 35... f6 {[%clk 0:00:41.5]} 36. Bf2 {[%clk
0:01:18.1]} 36... Kf7 {[%clk 0:00:41.1]} 37. Re2 {[%clk 0:01:18.7]} 37... Qd5+
{[%clk 0:00:41.5]} 0-1

[Event "*** Titled Tuesday Blitz"]
[Site "Chess.com"]
[Date "2019.11.05"]
[Round "3"]
[White "MissingLife"]
[Black "ChessQueen"]
[Result "0-1"]
[WhiteElo "2448"]
[BlackElo "2670"]
[TimeControl "180+2"]
[EndTime "13:36:46 PST"]
[Termination "ChessQueen won on time"]

1. c4 {[%clk 0:03:01.9]} 1... Nf6 {[%clk 0:02:59.2]} 2. Nf3 {[%clk 0:03:03.1]}
2... b6 {[%clk 0:02:56.6]} 3. g3 {[%clk 0:03:04.4]} 3... Bb7 {[%clk 0:02:57.7]}
4. Bg2 {[%clk 0:03:06.1]} 4... e6 {[%clk 0:02:59.1]} 5. Nh4 {[%clk 0:03:07.6]}
5... Bxg2 {[%clk 0:02:59.2]} 6. Nxg2 {[%clk 0:03:09.5]} 6... d5 {[%clk
0:02:42.6]} 7. cxd5 {[%clk 0:03:08.1]} 7... Nxd5 {[%clk 0:02:42.5]} 8. Qa4+
{[%clk 0:03:07]} 8... Qd7 {[%clk 0:02:41.8]} 9. Qb3 {[%clk 0:03:08.1]} 9... c5
{[%clk 0:02:38.1]} 10. O-O {[%clk 0:03:06.7]} 10... Nc6 {[%clk 0:02:39.3]} 11.
d3 {[%clk 0:03:02.1]} 11... Be7 {[%clk 0:02:38.9]} 12. Nc3 {[%clk 0:03:01]}
12... O-O {[%clk 0:02:32.9]} 13. Nxd5 {[%clk 0:02:50.7]} 13... exd5 {[%clk
0:02:34.8]} 14. e3 {[%clk 0:02:50.9]} 14... Bf6 {[%clk 0:02:33.2]} 15. Nf4
{[%clk 0:02:49.7]} 15... Rfd8 {[%clk 0:02:29.9]} 16. Bd2 {[%clk 0:02:49.4]}
16... Ne5 {[%clk 0:02:29.9]} 17. Kg2 {[%clk 0:02:48.2]} 17... c4 {[%clk
0:01:49.8]} 18. Qa3 {[%clk 0:02:35.7]} 18... d4 {[%clk 0:01:46.4]} 19. e4 {[%clk
0:02:30.2]} 19... Be7 {[%clk 0:01:09.4]} 20. Qa6 {[%clk 0:02:24.7]} 20... Rac8
{[%clk 0:00:57.3]} 21. Rac1 {[%clk 0:02:20.3]} 21... b5 {[%clk 0:00:54.2]} 22.
Ba5 {[%clk 0:02:18.7]} 22... Re8 {[%clk 0:00:49]} 0-1

[Event "*** Titled Tuesday Blitz"]
[Site "Chess.com"]
[Date "2019.11.05"]
[Round "3"]
[White "IMDT02"]
[Black "Eliwood44"]
[Result "0-1"]
[WhiteElo "2586"]
[BlackElo "2358"]
[TimeControl "180+2"]
[EndTime "13:36:47 PST"]
[Termination "Eliwood44 won by resignation"]

1. d4 {[%clk 0:03:01.9]} 1... Nf6 {[%clk 0:03:00.8]} 2. c4 {[%clk 0:03:03]} 2...
e6 {[%clk 0:03:02.2]} 3. Nc3 {[%clk 0:03:04.6]} 3... d5 {[%clk 0:03:03.5]} 4.
cxd5 {[%clk 0:03:05.7]} 4... exd5 {[%clk 0:03:05.4]} 5. Bg5 {[%clk 0:03:06.8]}
5... c6 {[%clk 0:03:05.9]} 6. Qc2 {[%clk 0:03:08.1]} 6... Nbd7 {[%clk
0:03:07.3]} 7. e3 {[%clk 0:03:09.6]} 7... h6 {[%clk 0:03:07.5]} 8. Bh4 {[%clk
0:03:10.1]} 8... Be7 {[%clk 0:03:08.8]} 9. Bd3 {[%clk 0:03:10.6]} 9... Nh5
{[%clk 0:03:09.6]} 10. Bxe7 {[%clk 0:03:09.1]} 10... Qxe7 {[%clk 0:03:11.5]} 11.
Nge2 {[%clk 0:03:08.4]} 11... Nb6 {[%clk 0:03:10.4]} 12. O-O-O {[%clk
0:03:07.4]} 12... Bd7 {[%clk 0:03:10.7]} 13. h3 {[%clk 0:03:07.3]} 13... O-O-O
{[%clk 0:03:11]} 14. g4 {[%clk 0:03:08.5]} 14... Nf6 {[%clk 0:03:11.8]} 15. Ng3
{[%clk 0:03:09.6]} 15... g6 {[%clk 0:03:11.8]} 16. Rhe1 {[%clk 0:03:10.2]} 16...
h5 {[%clk 0:03:10.9]} 17. g5 {[%clk 0:03:06.4]} 17... Ne8 {[%clk 0:03:11.7]} 18.
h4 {[%clk 0:03:07.7]} 18... Bg4 {[%clk 0:03:09.2]} 19. Rd2 {[%clk 0:03:08.1]}
19... Nd6 {[%clk 0:03:09.7]} 20. b3 {[%clk 0:03:06]} 20... Kb8 {[%clk
0:03:09.2]} 21. Kb1 {[%clk 0:03:06]} 21... Rhe8 {[%clk 0:03:07.4]} 22. a4 {[%clk
0:02:58.4]} 22... Rc8 {[%clk 0:02:56.3]} 23. a5 {[%clk 0:02:55.5]} 23... Nd7
{[%clk 0:02:57.4]} 24. Na4 {[%clk 0:02:56.1]} 24... Ne4 {[%clk 0:02:53.2]} 25.
Nxe4 {[%clk 0:02:50.3]} 25... dxe4 {[%clk 0:02:54.3]} 26. Bc4 {[%clk 0:02:50.7]}
26... c5 {[%clk 0:02:54.9]} 27. dxc5 {[%clk 0:02:26.2]} 27... Nxc5 {[%clk
0:02:55.5]} 28. Nxc5 {[%clk 0:02:25.9]} 28... Rxc5 {[%clk 0:02:55.6]} 29. Qa2
{[%clk 0:02:01.6]} 29... Rec8 {[%clk 0:02:51.9]} 30. Rc1 {[%clk 0:01:35]} 30...
Be6 {[%clk 0:02:50]} 31. Rdc2 {[%clk 0:01:11.8]} 31... Bxc4 {[%clk 0:02:50.4]}
32. Rxc4 {[%clk 0:01:06.2]} 32... Rxc4 {[%clk 0:02:51.4]} 33. Rxc4 {[%clk
0:01:06.9]} 33... Rxc4 {[%clk 0:02:52.1]} 34. bxc4 {[%clk 0:01:08.8]} 34... Qb4+
{[%clk 0:02:53]} 35. Qb2 {[%clk 0:01:09.9]} 35... Qxc4 {[%clk 0:02:50.8]} 36.
Qe5+ {[%clk 0:01:03.2]} 36... Kc8 {[%clk 0:02:50.7]} 37. Kb2 {[%clk 0:01:02.3]}
37... b6 {[%clk 0:02:40.4]} 38. axb6 {[%clk 0:00:59.7]} 38... axb6 {[%clk
0:02:40.7]} 39. Qf6 {[%clk 0:00:59.8]} 39... Kb7 {[%clk 0:02:39.4]} 40. Qe7+
{[%clk 0:01:00.2]} 40... Ka6 {[%clk 0:02:39.2]} 41. Qf6 {[%clk 0:00:45.4]} 41...
Ka5 {[%clk 0:02:34.9]} 42. Ka3 {[%clk 0:00:39.5]} 42... Qd5 {[%clk 0:02:28.9]}
43. Qc3+ {[%clk 0:00:38.3]} 43... Ka6 {[%clk 0:02:29.3]} 44. Qc8+ {[%clk
0:00:38.5]} 44... Kb5 {[%clk 0:02:29.2]} 45. Qe8+ {[%clk 0:00:34]} 45... Kc4
{[%clk 0:02:26.4]} 46. Qa4+ {[%clk 0:00:30.3]} 46... Kd3 {[%clk 0:02:27.3]} 47.
Qd1+ {[%clk 0:00:30.7]} 47... Kc4 {[%clk 0:02:28.6]} 48. Qa4+ {[%clk 0:00:30.7]}
48... Kc5 {[%clk 0:02:29.9]} 49. Qb4+ {[%clk 0:00:27.6]} 49... Kc6 {[%clk
0:02:31]} 50. Kb2 {[%clk 0:00:24.8]} 50... Qb5 {[%clk 0:02:31.4]} 0-1

[Event "*** Titled Tuesday Blitz"]
[Site "Chess.com"]
[Date "2019.11.05"]
[Round "3"]
[White "misha_chessone"]
[Black "FearlessKing64"]
[Result "1/2-1/2"]
[WhiteElo "2532"]
[BlackElo "2307"]
[TimeControl "180+2"]
[EndTime "13:36:55 PST"]
[Termination "Game drawn by repetition"]

1. d4 {[%clk 0:03:00.7]} 1... Nf6 {[%clk 0:02:59.3]} 2. c4 {[%clk 0:03:01.3]}
2... g6 {[%clk 0:03:00.7]} 3. Nc3 {[%clk 0:03:02]} 3... d5 {[%clk 0:03:02.1]} 4.
cxd5 {[%clk 0:03:02.8]} 4... Nxd5 {[%clk 0:03:03]} 5. e4 {[%clk 0:03:04.4]} 5...
Nxc3 {[%clk 0:03:02.7]} 6. bxc3 {[%clk 0:03:05.9]} 6... Bg7 {[%clk 0:03:03.8]}
7. Bc4 {[%clk 0:03:06.6]} 7... c5 {[%clk 0:03:04.9]} 8. Be3 {[%clk 0:03:06.8]}
8... Qa5 {[%clk 0:03:04.3]} 9. Qd2 {[%clk 0:02:57.6]} 9... O-O {[%clk
0:03:03.1]} 10. Ne2 {[%clk 0:02:56]} 10... Nc6 {[%clk 0:03:03.2]} 11. Rd1 {[%clk
0:02:51]} 11... Rd8 {[%clk 0:03:00.9]} 12. O-O {[%clk 0:02:44.2]} 12... cxd4
{[%clk 0:02:50.5]} 13. cxd4 {[%clk 0:02:43.1]} 13... Qxd2 {[%clk 0:02:51.5]} 14.
Rxd2 {[%clk 0:02:43.5]} 14... Bg4 {[%clk 0:02:30.1]} 15. f3 {[%clk 0:02:43.2]}
15... Bd7 {[%clk 0:02:30.8]} 16. d5 {[%clk 0:02:27.8]} 16... Ne5 {[%clk
0:02:01.6]} 17. Bb3 {[%clk 0:02:23.8]} 17... Bb5 {[%clk 0:02:02]} 18. Rc1 {[%clk
0:02:17.1]} 18... Rac8 {[%clk 0:01:56.5]} 19. Bxa7 {[%clk 0:01:34.2]} 19... Bxe2
{[%clk 0:01:25.7]} 20. Rxc8 {[%clk 0:01:33.4]} 20... Rxc8 {[%clk 0:01:27.6]} 21.
Rxe2 {[%clk 0:01:29.8]} 21... Rc1+ {[%clk 0:01:16.1]} 22. Kf2 {[%clk 0:01:28.8]}
22... Bh6 {[%clk 0:00:48.8]} 23. Rc2 {[%clk 0:01:11]} 23... Nd3+ {[%clk
0:00:44.9]} 24. Ke2 {[%clk 0:01:03]} 24... Nf4+ {[%clk 0:00:38.9]} 25. Kf2
{[%clk 0:00:31.9]} 25... Nd3+ {[%clk 0:00:39]} 26. Ke2 {[%clk 0:00:26.8]} 26...
Nf4+ {[%clk 0:00:39.5]} 27. Kf2 {[%clk 0:00:27.8]} 27... Nd3+ {[%clk 0:00:39.1]}
1/2-1/2

[Event "*** Titled Tuesday Blitz"]
[Site "Chess.com"]
[Date "2019.11.05"]
[Round "3"]
[White "GM_dmitrij"]
[Black "Azatic"]
[Result "1-0"]
[WhiteElo "2930"]
[BlackElo "2634"]
[TimeControl "180+2"]
[EndTime "13:36:57 PST"]
[Termination "GM_dmitrij won by resignation"]

1. e4 {[%clk 0:03:01.9]} 1... c5 {[%clk 0:03:00.9]} 2. Nf3 {[%clk 0:03:02.2]}
2... e6 {[%clk 0:03:02.3]} 3. d4 {[%clk 0:03:02.7]} 3... cxd4 {[%clk 0:03:04.2]}
4. Nxd4 {[%clk 0:03:04.6]} 4... a6 {[%clk 0:03:05.6]} 5. c4 {[%clk 0:03:04.7]}
5... Qc7 {[%clk 0:03:06.8]} 6. Nc3 {[%clk 0:03:05.8]} 6... Nf6 {[%clk
0:03:08.3]} 7. Be2 {[%clk 0:03:03.4]} 7... Be7 {[%clk 0:03:09.3]} 8. f4 {[%clk
0:03:01.4]} 8... d6 {[%clk 0:03:09]} 9. O-O {[%clk 0:02:59]} 9... e5 {[%clk
0:03:08.5]} 10. Nf5 {[%clk 0:02:54.9]} 10... Bxf5 {[%clk 0:02:49.5]} 11. exf5
{[%clk 0:02:56.8]} 11... O-O {[%clk 0:02:50.4]} 12. g4 {[%clk 0:02:56.1]} 12...
exf4 {[%clk 0:02:47.3]} 13. g5 {[%clk 0:02:32.7]} 13... Ne8 {[%clk 0:02:26.4]}
14. f6 {[%clk 0:02:28.5]} 14... gxf6 {[%clk 0:02:15]} 15. Nd5 {[%clk 0:02:29.7]}
15... Qd8 {[%clk 0:02:11]} 16. gxf6 {[%clk 0:02:20.7]} 16... Nxf6 {[%clk
0:02:04.7]} 17. Bxf4 {[%clk 0:02:21]} 17... Nxd5 {[%clk 0:01:58.8]} 18. Qxd5
{[%clk 0:02:22.9]} 18... Kh8 {[%clk 0:01:53.5]} 19. Kh1 {[%clk 0:02:18.5]} 19...
Nc6 {[%clk 0:01:51.3]} 20. Bh6 {[%clk 0:02:05.1]} 20... Ne5 {[%clk 0:01:42.4]}
21. Bxf8 {[%clk 0:01:43.6]} 21... Qxf8 {[%clk 0:01:44.3]} 22. c5 {[%clk
0:01:42]} 22... Qh6 {[%clk 0:01:29]} 23. Qxb7 {[%clk 0:01:32.2]} 23... Re8
{[%clk 0:01:18.8]} 24. c6 {[%clk 0:01:09.2]} 24... Qe3 {[%clk 0:00:20.9]} 25. c7
{[%clk 0:01:08.5]} 25... Qxe2 {[%clk 0:00:17.8]} 26. c8=Q {[%clk 0:01:08.2]}
26... Rxc8 {[%clk 0:00:19]} 27. Qxc8+ {[%clk 0:01:10.1]} 27... Kg7 {[%clk
0:00:20.4]} 28. Qh3 {[%clk 0:00:56.7]} 28... Qxb2 {[%clk 0:00:16.5]} 29. Qg2+
{[%clk 0:00:56.6]} 29... Ng6 {[%clk 0:00:17.1]} 30. Qxb2+ {[%clk 0:00:57.3]} 1-0

[Event "*** Titled Tuesday Blitz"]
[Site "Chess.com"]
[Date "2019.11.05"]
[Round "3"]
[White "1f3_2g41-0"]
[Black "StephenDedalus83"]
[Result "0-1"]
[WhiteElo "2281"]
[BlackElo "2809"]
[TimeControl "180+2"]
[EndTime "13:37:04 PST"]
[Termination "StephenDedalus83 won by resignation"]

1. e4 {[%clk 0:03:01.9]} 1... c5 {[%clk 0:02:59.2]} 2. Nf3 {[%clk 0:03:02.8]}
2... Nc6 {[%clk 0:02:58.2]} 3. Bb5 {[%clk 0:03:03.7]} 3... e6 {[%clk 0:02:57.2]}
4. O-O {[%clk 0:03:03.6]} 4... Nge7 {[%clk 0:02:55.8]} 5. c3 {[%clk 0:03:03.8]}
5... a6 {[%clk 0:02:54.7]} 6. Ba4 {[%clk 0:03:03.3]} 6... b5 {[%clk 0:02:54.9]}
7. Bc2 {[%clk 0:03:04.8]} 7... Bb7 {[%clk 0:02:55.5]} 8. d4 {[%clk 0:03:06.3]}
8... cxd4 {[%clk 0:02:53.5]} 9. cxd4 {[%clk 0:03:08.2]} 9... Nb4 {[%clk
0:02:54.7]} 10. Nc3 {[%clk 0:03:00.7]} 10... Nxc2 {[%clk 0:02:55.3]} 11. Qxc2
{[%clk 0:03:02.6]} 11... Rc8 {[%clk 0:02:56.3]} 12. a3 {[%clk 0:03:02.3]} 12...
Ng6 {[%clk 0:02:53.5]} 13. Qb3 {[%clk 0:03:00.3]} 13... Bd6 {[%clk 0:02:48.6]}
14. Bg5 {[%clk 0:02:54.7]} 14... Qb6 {[%clk 0:02:44.4]} 15. d5 {[%clk
0:02:48.2]} 15... O-O {[%clk 0:02:43.8]} 16. Be3 {[%clk 0:02:48.3]} 16... Qa5
{[%clk 0:02:38.5]} 17. Rfd1 {[%clk 0:02:41.8]} 17... Bb8 {[%clk 0:02:38.6]} 18.
Rac1 {[%clk 0:02:39.1]} 18... Rc4 {[%clk 0:02:39.2]} 19. Nxb5 {[%clk 0:02:28.6]}
19... Rxc1 {[%clk 0:02:36]} 20. Rxc1 {[%clk 0:02:23.6]} 20... Qxb5 {[%clk
0:02:36.5]} 21. Qc2 {[%clk 0:02:11.2]} 21... exd5 {[%clk 0:02:35]} 22. Nd4
{[%clk 0:02:11.9]} 22... Qa5 {[%clk 0:02:31.5]} 23. Qb3 {[%clk 0:02:09.6]} 23...
Ba8 {[%clk 0:02:28.8]} 24. Nf5 {[%clk 0:02:04.2]} 24... dxe4 {[%clk 0:02:26.3]}
25. g4 {[%clk 0:01:51.4]} 25... Bd5 {[%clk 0:02:23]} 26. Qc2 {[%clk 0:01:46.6]}
26... Ne5 {[%clk 0:02:21.6]} 27. Qc8 {[%clk 0:01:28.9]} 27... Ng6 {[%clk
0:01:50.5]} 28. Qxd7 {[%clk 0:01:18.5]} 28... Be6 {[%clk 0:01:50.5]} 29. Qd4
{[%clk 0:01:17.9]} 29... Bxf5 {[%clk 0:01:50.8]} 30. gxf5 {[%clk 0:01:19.8]}
30... Qxf5 {[%clk 0:01:51.7]} 31. Kf1 {[%clk 0:01:16.2]} 31... Be5 {[%clk
0:01:49.9]} 32. Qd5 {[%clk 0:01:12.4]} 32... Qh3+ {[%clk 0:01:49.8]} 33. Ke1
{[%clk 0:01:11.5]} 33... Bxb2 {[%clk 0:01:50.5]} 34. Rc7 {[%clk 0:01:08.8]}
34... Qe6 {[%clk 0:01:47.6]} 35. Qb7 {[%clk 0:01:02.5]} 35... Bxa3 {[%clk
0:01:45]} 36. Rc3 {[%clk 0:01:01]} 36... Be7 {[%clk 0:01:43.4]} 37. Rc6 {[%clk
0:01:00.8]} 37... Qd5 {[%clk 0:01:42.4]} 38. Bh6 {[%clk 0:00:55.6]} 38... Bb4+
{[%clk 0:01:38.6]} 39. Kf1 {[%clk 0:00:50.1]} 39... Qd1+ {[%clk 0:01:34.4]} 40.
Kg2 {[%clk 0:00:50.9]} 40... Nh4+ {[%clk 0:01:34.3]} 41. Kh3 {[%clk 0:00:51.3]}
41... Qf3+ {[%clk 0:01:30.1]} 42. Kxh4 {[%clk 0:00:52.5]} 42... Qxf2+ {[%clk
0:01:30.6]} 43. Kh3 {[%clk 0:00:53.4]} 43... Qf3+ {[%clk 0:01:31.6]} 44. Kh4
{[%clk 0:00:54.7]} 44... Be1+ {[%clk 0:01:32.2]} 45. Kg5 {[%clk 0:00:55.9]}
45... Bd2+ {[%clk 0:01:29.4]} 46. Kh4 {[%clk 0:00:56.7]} 46... Bxh6 {[%clk
0:01:30.2]} 47. Rxh6 {[%clk 0:00:52.8]} 47... gxh6 {[%clk 0:01:29.9]} 0-1

[Event "*** Titled Tuesday Blitz"]
[Site "Chess.com"]
[Date "2019.11.05"]
[Round "3"]
[White "WorldChampionBulletChess"]
[Black "Chempiblinka"]
[Result "0-1"]
[WhiteElo "2053"]
[BlackElo "2322"]
[TimeControl "180+2"]
[EndTime "13:37:16 PST"]
[Termination "Chempiblinka won by resignation"]

1. d4 {[%clk 0:03:01.9]} 1... Nf6 {[%clk 0:02:51.4]} 2. Nf3 {[%clk 0:02:59.4]}
2... g6 {[%clk 0:02:51.1]} 3. g3 {[%clk 0:03:01.3]} 3... Bg7 {[%clk 0:02:51.1]}
4. Bg2 {[%clk 0:03:03.2]} 4... O-O {[%clk 0:02:51.1]} 5. O-O {[%clk 0:03:01.1]}
5... d6 {[%clk 0:02:51.8]} 6. c4 {[%clk 0:03:02.6]} 6... c6 {[%clk 0:02:52.7]}
7. Na3 {[%clk 0:02:56.1]} 7... Qa5 {[%clk 0:02:52.9]} 8. Nc2 {[%clk 0:02:57]}
8... Qh5 {[%clk 0:02:53.9]} 9. Re1 {[%clk 0:02:50.4]} 9... e5 {[%clk 0:02:49.2]}
10. dxe5 {[%clk 0:02:48.8]} 10... dxe5 {[%clk 0:02:51.1]} 11. e4 {[%clk
0:02:47.2]} 11... Na6 {[%clk 0:02:28.4]} 12. Bg5 {[%clk 0:02:18.9]} 12... Bg4
{[%clk 0:02:19]} 13. Bxf6 {[%clk 0:02:15.3]} 13... Bxf6 {[%clk 0:02:20.9]} 14.
Qd3 {[%clk 0:02:04.7]} 14... Rad8 {[%clk 0:02:11.5]} 15. Qe3 {[%clk 0:02:05]}
15... b6 {[%clk 0:02:05.2]} 16. Rad1 {[%clk 0:01:51.3]} 16... Nc5 {[%clk
0:02:02.2]} 17. b4 {[%clk 0:01:49.4]} 17... Ne6 {[%clk 0:01:47.3]} 18. Rd2
{[%clk 0:01:37.6]} 18... c5 {[%clk 0:01:07.1]} 19. a3 {[%clk 0:01:24.9]} 19...
Nd4 {[%clk 0:01:05.9]} 20. Nfxd4 {[%clk 0:01:24.9]} 20... cxd4 {[%clk
0:01:05.8]} 21. Qd3 {[%clk 0:01:24.1]} 21... Rc8 {[%clk 0:01:01.9]} 22. f3
{[%clk 0:01:23.6]} 22... Be6 {[%clk 0:01:00.9]} 23. c5 {[%clk 0:00:35.6]} 23...
bxc5 {[%clk 0:01:02.8]} 24. bxc5 {[%clk 0:00:36.8]} 24... Rxc5 {[%clk
0:01:02.7]} 25. Nb4 {[%clk 0:00:37.6]} 25... Rc3 {[%clk 0:00:56.3]} 26. Qe2
{[%clk 0:00:37]} 26... Bc4 {[%clk 0:00:41.3]} 27. Qf2 {[%clk 0:00:31.7]} 27...
Bg5 {[%clk 0:00:37.1]} 28. Rc2 {[%clk 0:00:29.8]} 28... Be3 {[%clk 0:00:31.5]}
29. Rxe3 {[%clk 0:00:29]} 29... dxe3 {[%clk 0:00:33.4]} 30. Qe1 {[%clk
0:00:27.1]} 30... Rxc2 {[%clk 0:00:33.7]} 31. Qc3 {[%clk 0:00:29]} 31... Rxc3
{[%clk 0:00:33.2]} 0-1

[Event "*** Titled Tuesday Blitz"]
[Site "Chess.com"]
[Date "2019.11.05"]
[Round "3"]
[White "Korchmar_Vasiliy"]
[Black "Genghis_K"]
[Result "1/2-1/2"]
[WhiteElo "2707"]
[BlackElo "2903"]
[TimeControl "180+2"]
[EndTime "13:37:21 PST"]
[Termination "Game drawn by agreement"]

1. d4 {[%clk 0:03:01.9]} 1... Nf6 {[%clk 0:02:45.3]} 2. c4 {[%clk 0:03:00.6]}
2... e6 {[%clk 0:02:45.1]} 3. g3 {[%clk 0:03:01.1]} 3... d5 {[%clk 0:02:46.1]}
4. Bg2 {[%clk 0:03:02]} 4... Be7 {[%clk 0:02:47.7]} 5. Nf3 {[%clk 0:03:02.9]}
5... O-O {[%clk 0:02:49.3]} 6. O-O {[%clk 0:03:04.5]} 6... dxc4 {[%clk
0:02:50.8]} 7. Ne5 {[%clk 0:03:05.9]} 7... Nc6 {[%clk 0:02:51.2]} 8. Bxc6 {[%clk
0:03:07.1]} 8... bxc6 {[%clk 0:02:52.4]} 9. Nxc6 {[%clk 0:03:09]} 9... Qe8
{[%clk 0:02:54]} 10. Nxe7+ {[%clk 0:03:10.9]} 10... Qxe7 {[%clk 0:02:55.9]} 11.
Qc2 {[%clk 0:03:12.4]} 11... c5 {[%clk 0:02:53.7]} 12. Qxc4 {[%clk 0:03:12.8]}
12... cxd4 {[%clk 0:02:54.2]} 13. Qxd4 {[%clk 0:03:14.7]} 13... e5 {[%clk
0:02:54.5]} 14. Qh4 {[%clk 0:03:15.6]} 14... h6 {[%clk 0:02:50.9]} 15. Nc3
{[%clk 0:03:16.2]} 15... Rb8 {[%clk 0:02:51.6]} 16. e4 {[%clk 0:03:16.7]} 16...
Rd8 {[%clk 0:02:35.5]} 17. Re1 {[%clk 0:02:20.1]} 17... Ba6 {[%clk 0:02:18.1]}
18. g4 {[%clk 0:01:20.4]} 18... Qe6 {[%clk 0:02:07.4]} 19. f3 {[%clk 0:01:10.4]}
19... Rd3 {[%clk 0:02:08.2]} 20. Qf2 {[%clk 0:01:08.3]} 20... Nh7 {[%clk
0:01:26.9]} 21. Be3 {[%clk 0:00:59.6]} 21... Ng5 {[%clk 0:01:26.2]} 22. Bxg5
{[%clk 0:00:56.6]} 22... hxg5 {[%clk 0:01:28.1]} 23. Rad1 {[%clk 0:00:56]} 23...
Rbd8 {[%clk 0:01:22.4]} 24. Rxd3 {[%clk 0:00:54.7]} 24... Rxd3 {[%clk
0:01:24.3]} 25. Rd1 {[%clk 0:00:44.9]} 25... Rxd1+ {[%clk 0:00:51.7]} 26. Nxd1
{[%clk 0:00:46.8]} 26... Qxa2 {[%clk 0:00:52.5]} 27. Qxa7 {[%clk 0:00:47.5]}
27... Qa1 {[%clk 0:00:41]} 28. Kf2 {[%clk 0:00:45.3]} 28... Qxd1 {[%clk
0:00:36.4]} 29. Qxa6 {[%clk 0:00:45.7]} 29... Qd4+ {[%clk 0:00:37.8]} 30. Kg3
{[%clk 0:00:34.9]} 1/2-1/2